bitfinex-derivatives/quotes_ETHF0:USTF0_20250909
["timestamp","ask_amount","ask_price","bid_price","bid_amount"]
[1757398030713,1.18099622,4332.1,4332.0,0.8563]
[1757398030909,1.67093772,4332.1,4332.0,0.8563]
[1757398031114,1.77093772,4332.1,4332.0,0.8563]
[1757398032716,1.53493772,4332.1,4332.0,0.8563]
[1757398032922,1.77093772,4332.1,4332.0,0.8563]
[1757398033220,1.47463772,4332.1,4332.0,0.8563]
[1757398034014,1.77093772,4332.1,4332.0,0.8563]
[1757398034721,1.53493772,4332.1,4332.0,0.8563]
[1757398034911,1.76993772,4332.1,4332.0,0.8563]
[1757398035112,1.76993772,4332.1,4332.0,0.5271]
[1757398035318,1.53493772,4332.1,4332.0,0.5271]
[1757398035518,2.85432492,4332.1,4332.0,0.6519]
[1757398035710,2.85432492,4332.1,4332.0,0.8563]
[1757398036423,2.85432492,4332.1,4332.0,0.3131]
[1757398036623,2.61932492,4332.1,4332.0,0.3131]
[1757398036818,2.85432492,4332.1,4332.0,0.3131]
[1757398037716,0.3957,4331.2,4331.1,0.7136]
[1757398037918,1.4800872,4331.2,4331.1,0.7136]
[1757398038122,1.7737287,4331.2,4331.1,0.7136]
[1757398041017,0.6893415,4331.2,4331.1,0.7136]
[1757398042020,1.0076415,4331.2,4331.1,0.7136]
[1757398042526,1.54140179,4331.2,4331.1,0.5173]
[1757398042719,1.22310179,4331.2,4331.1,0.7136]
[1757398042915,0.4912415,4331.2,4331.1,0.7136]
[1757398043314,1.02503425,4331.2,4331.1,0.7136]
[1757398043515,0.2936415,4331.2,4331.1,0.7136]
[1757398043715,0.2936415,4331.2,4331.1,4.7136]
[1757398046127,0.2936415,4331.2,4331.1,0.7136]
[1757398050037,0.4912415,4331.2,4331.1,0.7136]
[1757398051340,1.0076415,4331.2,4331.1,0.7136]
[1757398051545,1.0076415,4331.2,4331.1,0.3079]
[1757398051846,1.92552778,4331.2,4331.1,0.5173]
[1757398052538,1.60722778,4331.2,4331.1,0.7136]
[1757398052937,1.40912778,4331.2,4331.1,0.7136]
[1757398053142,0.2936415,4331.2,4331.1,0.7136]
[1757398057150,0.82888983,4331.2,4331.1,0.7136]
[1757398058053,1.02648983,4331.2,4331.1,0.7136]
[1757398058551,0.82888983,4331.2,4331.1,0.7136]
[1757398058754,1.02648983,4331.2,4331.1,0.7136]
[1757398062449,0.82888983,4331.2,4331.1,0.7136]
[1757398064762,0.2936415,4331.2,4331.1,0.7136]
[1757398071666,1.24788223,4332.3,4332.0,0.1268]
[1757398071856,0.53552133,4332.2,4332.1,0.7204]
[1757398072159,1.31018223,4333.5,4332.7,0.4169]
[1757398072367,0.731,4332.8,4332.7,0.4169]
[1757398072663,0.94387748,4332.8,4332.7,0.4169]
[1757398072860,0.94387748,4332.8,4332.7,0.7204]
[1757398073167,1.26597748,4332.8,4332.7,0.5144]
[1757398074161,0.731,4332.8,4332.7,0.5144]
[1757398074864,0.3221,4333.3,4332.7,0.4169]
[1757398075062,0.91788628,4333.0,4332.5,0.1268]
[1757398075256,0.2027,4332.6,4332.5,0.5437]
[1757398075461,1.23998628,4333.1,4332.5,0.5437]
[1757398075658,0.94307619,4333.0,4332.9,0.2109]
[1757398075862,1.26517619,4333.0,4332.9,0.5144]
[1757398078663,1.26517619,4333.0,4332.8,0.2109]
[1757398078664,0.3221,4332.9,4332.8,0.2109]
[1757398078971,0.4089,4332.7,4332.6,0.2109]
[1757398079172,0.731,4332.7,4332.6,0.5144]
[1757398079573,0.731,4332.7,4332.6,0.7204]
[1757398079869,0.3221,4333.4,4332.6,1.33478628]
[1757398080167,0.4089,4332.8,4332.7,0.7204]
[1757398080360,0.94252141,4332.8,4332.7,0.7204]
[1757398080872,0.73632141,4332.8,4332.7,0.7204]
[1757398081569,1.26462141,4332.8,4332.7,0.7204]
[1757398082670,1.26462141,4332.8,4332.7,0.5144]
[1757398083767,1.26462141,4332.8,4332.1,0.3035]
[1757398084074,1.64888628,4332.8,4332.1,0.3035]
[1757398084267,1.32678628,4332.8,4332.1,0.91788628]
[1757398084468,0.2027,4332.3,4332.2,0.7204]
[1757398084769,0.3221,4333.1,4332.3,0.3035]
[1757398084966,0.2027,4332.4,4332.3,0.7204]
[1757398086276,0.2027,4332.6,4332.5,0.8472]
[1757398086472,0.2027,4332.6,4332.5,1.76508628]
[1757398088181,0.4089,4332.6,4332.5,0.8472]
[1757398088372,0.731,4332.6,4332.5,0.8472]
[1757398089570,0.731,4332.6,4332.5,0.5144]
[1757398091081,0.4089,4332.1,4332.0,0.1268]
[1757398091271,0.3221,4331.9,4331.7,0.3035]
[1757398091475,0.3221,4332.0,4331.8,0.3035]
[1757398091672,0.2027,4331.9,4331.8,0.7204]
[1757398091875,0.4089,4331.9,4331.8,0.7204]
[1757398092071,0.2027,4332.1,4332.0,0.1268]
[1757398092285,0.3221,4332.7,4332.0,1.25558628]
[1757398092579,0.3221,4332.7,4332.1,0.3035]
[1757398092785,1.64888628,4332.7,4332.6,0.2109]
[1757398092986,1.64888628,4332.7,4332.6,0.5144]
[1757398093180,1.64888628,4332.7,4332.6,0.3035]
[1757398093485,1.64888628,4332.7,4332.0,0.1268]
[1757398093685,0.731,4332.1,4332.0,0.6412]
[1757398093879,0.2027,4332.1,4332.0,0.8472]
[1757398094079,0.3221,4332.6,4332.0,0.5437]
[1757398094383,0.731,4332.6,4332.5,0.8472]
[1757398096288,0.731,4332.6,4332.0,0.1268]
[1757398096484,0.2085,4332.1,4332.0,0.5433]
[1757398096684,1.62078628,4332.1,4332.0,0.5433]
[1757398096881,0.4069,4332.1,4332.0,0.5433]
[1757398097076,0.4069,4332.1,4332.0,0.8605]
[1757398097781,0.7029,4332.1,4332.0,0.6597]
[1757398097978,1.62078628,4332.1,4332.0,0.6586]
[1757398098178,1.32478628,4332.1,4332.0,0.8594]
[1757398098582,0.2085,4332.1,4332.0,0.8594]
[1757398099682,0.296,4332.9,4332.1,0.3172]
[1757398099883,2.15544384,4332.8,4332.7,0.5329]
[1757398100590,2.15544384,4332.8,4332.7,0.3172]
[1757398100885,1.23755756,4332.8,4332.7,0.3172]
[1757398101092,2.15544384,4332.8,4332.7,0.5329]
[1757398101387,1.23755756,4332.8,4332.7,0.5329]
[1757398101688,2.15544384,4332.8,4332.7,0.5329]
[1757398103480,1.85944384,4332.8,4332.5,0.1257]
[1757398103682,1.32478628,4332.8,4332.7,0.5329]
[1757398103882,0.94204749,4332.8,4332.7,0.7337]
[1757398104690,1.23804749,4332.8,4332.7,0.7337]
[1757398104990,1.23804749,4332.8,4332.7,0.3172]
[1757398106087,1.23804749,4332.8,4332.7,0.5329]
[1757398106288,2.15593377,4332.8,4332.7,0.7337]
[1757398107390,1.23804749,4332.8,4332.7,0.7337]
[1757398107589,0.94204749,4332.8,4332.7,0.7337]
[1757398110485,1.23804749,4332.8,4332.7,0.7337]
[1757398113892,1.23804749,4332.8,4332.7,0.5329]
[1757398114095,2.32150315,4332.8,4332.6,0.3172]
[1757398114292,0.2085,4332.8,4332.7,0.7337]
[1757398114491,0.74371188,4332.8,4332.7,0.7337]
[1757398114693,0.94211188,4332.8,4332.7,0.7337]
[1757398115690,1.23811188,4332.8,4332.7,0.7337]
[1757398117293,0.94211188,4332.8,4332.7,0.7337]
[1757398119799,0.74371188,4332.8,4332.7,0.7337]
[1757398120600,1.23811188,4332.8,4332.7,0.7337]
[1757398121305,0.53521188,4332.8,4332.7,0.7337]
[1757398122204,0.74371188,4332.8,4332.7,0.7337]
[1757398122908,1.23811188,4332.8,4332.7,0.7337]
[1757398123207,0.53521188,4332.8,4332.7,0.7337]
[1757398128704,0.94941188,4332.8,4332.7,0.7337]
[1757398128910,1.26091188,4332.8,4332.7,0.7337]
[1757398131912,0.94941188,4332.8,4332.7,0.7337]
[1757398132709,1.26091188,4332.8,4332.7,0.7337]
[1757398133414,1.26091188,4332.8,4332.7,0.5329]
[1757398137316,1.26091188,4332.8,4332.7,0.7346]
[1757398137519,0.94941188,4332.8,4332.7,0.7346]
[1757398138313,1.26091188,4332.8,4332.7,0.7346]
[1757398139620,2.34436754,4332.8,4332.7,0.3172]
[1757398140115,1.26091188,4332.8,4332.1,0.3197]
[1757398140319,0.2054,4332.2,4332.1,0.7217]
[1757398142313,0.4142,4332.2,4332.1,0.7217]
[1757398142620,0.7257,4332.2,4332.1,0.7217]
[1757398144121,0.4142,4332.2,4332.1,0.7217]
[1757398146725,0.2054,4332.2,4332.1,0.7217]
[1757398147117,1.66384298,4333.9,4332.5,0.1254]
[1757398147323,0.94981624,4333.3,4333.2,0.7217]
[1757398147524,1.26131624,4333.3,4333.2,0.52]
[1757398147822,1.26131624,4333.3,4333.2,0.3197]
[1757398148228,1.26131624,4333.3,4333.2,0.52]
[1757398149121,2.3447719,4333.3,4333.2,0.52]
[1757398150620,2.3447719,4333.3,4333.2,0.3197]
[1757398151727,2.3447719,4333.3,4332.6,0.3197]
[1757398151929,0.7257,4332.7,4332.6,0.52]
[1757398152224,0.4142,4332.7,4332.6,0.7217]
[1757398152620,1.08345566,4333.3,4333.0,0.1254]
[1757398152816,0.53547421,4333.2,4333.1,0.7217]
[1757398153023,0.74087421,4333.2,4333.1,0.7217]
[1757398153728,0.2054,4333.2,4333.1,0.7217]
[1757398153928,0.74084949,4333.2,4333.1,0.7217]
[1757398154429,0.94964949,4333.2,4333.1,0.7217]
[1757398154928,1.26114949,4333.2,4333.1,0.7217]
[1757398155323,1.26114949,4333.2,4332.6,0.3197]
[1757398155528,0.2054,4332.7,4332.6,0.7217]
[1757398156218,0.4142,4332.7,4332.6,0.7217]
[1757398156424,0.731,4332.7,4332.6,0.7217]
[1757398156724,0.4142,4332.7,4332.6,0.7217]
[1757398157226,0.731,4332.7,4332.6,0.7217]
[1757398158032,0.2054,4332.7,4332.6,0.7217]
[1757398161130,0.7313,4332.7,4332.6,0.7217]
[1757398162528,2.35014573,4332.7,4332.6,0.3197]
[1757398162729,2.35014573,4332.7,4332.1,0.3163]
[1757398162927,2.35014573,4332.7,4332.1,0.5315]
[1757398162928,0.7241,4332.2,4332.1,0.5315]
[1757398164532,0.7241,4332.2,4332.1,0.7266]
[1757398165033,1.49075566,4332.7,4332.6,0.2152]
[1757398165332,1.49075566,4332.7,4332.0,0.1257]
[1757398165333,2.02611729,4332.7,4332.1,0.3163]
[1757398165527,0.1982,4332.2,4332.1,0.7266]
[1757398165733,0.3168,4332.7,4332.2,0.3163]
[1757398165934,1.25944536,4332.6,4332.5,0.6499]
[1757398166529,1.25944536,4332.6,4332.5,0.3163]
[1757398166730,0.94264536,4332.6,4332.5,0.845]
[1757398167235,1.25944536,4332.6,4332.5,0.845]
[1757398168638,0.7241,4332.6,4332.5,0.845]
[1757398168836,1.25943669,4332.6,4332.5,0.845]
[1757398169537,0.53533669,4332.6,4332.5,0.845]
[1757398169734,0.73353669,4332.6,4332.5,0.845]
[1757398169940,1.25943669,4332.6,4332.5,0.845]
[1757398170343,2.17680541,4332.6,4332.5,0.845]
[1757398172544,1.64146872,4332.6,4332.5,0.845]
[1757398172740,1.64146872,4332.6,4332.5,0.3163]
[1757398172938,1.64146872,4332.6,4332.1,0.3163]
[1757398173139,1.44326872,4332.3,4332.2,0.2152]
[1757398173444,1.64146872,4332.3,4332.2,0.7266]
[1757398173839,1.32466872,4332.3,4332.2,0.7266]
[1757398174039,1.11556872,4332.3,4332.2,0.7266]
[1757398174943,1.32466872,4332.3,4332.2,0.7266]
[1757398175940,0.91736872,4332.6,4332.5,0.1184]
[1757398176243,0.91736872,4332.6,4332.5,0.845]
[1757398176244,1.86004633,4332.6,4332.5,0.845]
[1757398176446,2.17684633,4332.6,4332.5,0.845]
[1757398176841,2.17684633,4332.6,4332.5,0.3163]
[1757398177146,2.17684633,4332.6,4332.0,0.1257]
[1757398177442,1.32466872,4332.1,4332.0,0.8523]
[1757398177640,1.64146872,4332.1,4332.0,0.8523]
[1757398178144,0.7241,4332.1,4332.0,0.8523]
[1757398178646,0.1982,4332.1,4332.0,0.8523]
[1757398179644,1.64146872,4332.1,4332.0,0.8523]
[1757398180344,1.64146872,4332.1,4331.6,0.3163]
[1757398180737,0.91736872,4331.8,4331.7,0.2152]
[1757398180934,1.64146872,4331.8,4331.7,0.5315]
[1757398181348,0.7241,4331.8,4331.7,0.5315]
[1757398182743,0.7241,4331.8,4331.5,0.1268]
[1757398182949,1.64146872,4331.6,4331.5,0.3163]
[1757398183144,1.64146872,4331.6,4331.5,0.5315]
[1757398183446,1.64146872,4331.6,4331.5,0.3163]
[1757398183645,0.7241,4331.6,4331.5,0.3163]
[1757398183952,0.7241,4331.6,4331.0,0.1254]
[1757398183953,1.64146872,4331.6,4331.1,0.3163]
[1757398184141,0.1982,4331.1,4331.0,0.5357]
[1757398184744,0.1982,4331.1,4331.0,0.852]
[1757398186149,0.4073,4331.1,4331.0,0.852]
[1757398186344,0.7217,4331.1,4331.0,0.852]
[1757398186649,0.4073,4331.1,4331.0,0.852]
[1757398187248,0.1982,4331.1,4331.0,0.852]
[1757398188043,0.91736872,4331.4,4331.0,0.5357]
[1757398188252,0.2055,4331.2,4331.1,0.7057]
[1757398188844,1.23176872,4331.5,4331.1,0.4037]
[1757398189148,1.63826872,4331.5,4331.4,0.4037]
[1757398189349,1.63826872,4331.5,4331.4,0.7057]
[1757398189737,1.32386872,4331.5,4331.4,0.7057]
[1757398190143,1.63826872,4331.5,4331.4,0.7057]
[1757398191148,1.63826872,4331.5,4331.4,0.5012]
[1757398192844,1.63826872,4331.5,4331.4,0.302]
[1757398193939,1.63826872,4331.5,4331.1,0.302]
[1757398194144,1.63826872,4331.2,4331.1,0.5012]
[1757398194946,1.63826872,4331.2,4331.1,0.302]
[1757398195147,6.78652744,4331.2,4330.6,0.302]
[1757398195344,1.63826872,4330.7,4330.6,0.302]
[1757398195555,1.63826872,4330.7,4330.0,0.1184]
[1757398195745,1.63826872,4330.3,4330.2,0.1992]
[1757398195946,1.63826872,4330.3,4330.2,0.5012]
[1757398196252,1.63826872,4330.3,4329.6,0.302]
[1757398196449,1.32386872,4329.9,4329.8,0.7057]
[1757398196757,1.63826872,4329.9,4329.8,0.7057]
[1757398197455,0.2055,4329.9,4329.8,0.7057]
[1757398197654,0.91736872,4330.2,4329.8,0.7057]
[1757398197860,0.2055,4330.1,4330.0,0.8301]
[1757398198566,0.7209,4330.1,4330.0,0.302]
[1757398198752,0.7209,4330.1,4330.0,0.5012]
[1757398199661,0.7209,4330.1,4330.0,0.302]
[1757398200351,0.5199,4329.9,4329.8,0.1992]
[1757398200553,0.3144,4330.9,4329.8,0.4037]
[1757398200752,1.12286872,4330.1,4330.0,0.5281]
[1757398200954,1.12286872,4330.1,4330.0,0.8301]
[1757398201353,0.2055,4330.1,4330.0,0.8301]
[1757398201860,0.7209,4330.1,4330.0,0.8301]
[1757398202063,0.2055,4330.1,4330.0,0.8301]
[1757398203466,0.91736872,4330.2,4330.1,0.7057]
[1757398204263,1.12286872,4330.2,4330.1,0.7057]
[1757398204656,1.32386872,4330.2,4330.1,0.7057]
[1757398204852,0.7209,4330.2,4329.6,0.302]
[1757398205061,1.63826872,4329.7,4329.6,0.5012]
[1757398205259,0.7209,4330.4,4330.3,0.1992]
[1757398205458,1.63826872,4330.4,4330.3,0.5012]
[1757398206682,1.87226872,4330.4,4330.3,0.5012]
[1757398207478,1.63826872,4330.4,4330.3,0.5012]
[1757398207679,1.32386872,4330.4,4330.3,0.7057]
[1757398207874,0.3144,4331.4,4330.4,0.302]
[1757398208180,1.12286872,4331.3,4331.2,0.7057]
[1757398208883,1.63826872,4331.3,4331.2,0.7057]
[1757398210976,0.4065,4331.6,4331.5,0.4264]
[1757398211176,1.55886872,4331.6,4331.5,0.8301]
[1757398211386,1.32386872,4331.6,4331.5,0.8301]
[1757398211586,1.55886872,4331.6,4331.5,0.8301]
[1757398211883,1.87326872,4331.6,4331.5,0.8301]
[1757398212885,1.63826872,4331.6,4331.5,0.8301]
[1757398213082,1.55886872,4331.6,4331.5,0.8301]
[1757398213886,1.32386872,4331.6,4331.5,0.8301]
[1757398214083,1.55886872,4331.6,4331.5,0.8301]
[1757398214486,1.87326872,4331.6,4331.5,0.8301]
[1757398214682,1.63826872,4331.6,4331.5,0.8301]
[1757398214879,1.87326872,4331.6,4331.5,0.8301]
[1757398215188,2.40733687,4331.6,4331.5,0.6256]
[1757398215871,2.17233687,4331.6,4331.5,0.8301]
[1757398216076,2.40733687,4331.6,4331.5,0.8301]
[1757398216284,2.17233687,4331.6,4331.5,0.8301]
[1757398216487,2.40733687,4331.6,4331.5,0.8301]
[1757398216778,2.40733687,4331.6,4331.0,0.1244]
[1757398216984,1.32036872,4331.1,4331.0,0.64]
[1757398217185,1.32036872,4331.1,4331.0,0.8461]
[1757398218187,0.403,4331.6,4331.5,0.8466]
[1757398218489,2.08941966,4331.6,4331.5,0.8466]
[1757398218672,1.85441966,4331.6,4331.5,0.8466]
[1757398218875,2.08941966,4331.6,4331.5,0.8466]
[1757398219486,1.85441966,4331.6,4331.5,0.8466]
[1757398219685,2.08841966,4331.6,4331.5,0.8466]
[1757398219979,1.85441966,4331.6,4331.5,0.8466]
[1757398220176,2.08841966,4331.6,4331.5,0.8466]
[1757398221884,1.55436872,4331.6,4331.5,0.8466]
[1757398222891,1.32036872,4331.6,4331.5,0.8466]
[1757398223087,0.1182,4332.5,4331.5,0.8466]
[1757398223088,0.91736872,4331.9,4331.5,0.8466]
[1757398223391,0.1972,4332.1,4332.0,0.8466]
[1757398223591,0.4312,4332.1,4332.0,0.8466]
[1757398224488,1.34856872,4332.1,4332.0,0.8466]
[1757398224690,1.11456872,4332.1,4332.0,0.8466]
[1757398224891,1.34856872,4332.1,4332.0,0.8466]
[1757398225085,1.55436872,4332.1,4332.0,0.8466]
[1757398225285,1.85786872,4332.1,4332.0,0.8466]
[1757398226185,1.55436872,4332.1,4332.0,0.8466]
[1757398226391,1.85786872,4332.1,4332.0,0.8466]
[1757398226785,1.55436872,4332.1,4332.0,0.8466]
[1757398229399,1.85786872,4332.1,4332.0,0.8466]
[1757398229692,1.34856872,4332.1,4332.0,0.8466]
[1757398230594,1.11456872,4332.1,4332.0,0.8466]
[1757398231690,1.32036872,4332.1,4332.0,0.8466]
[1757398231889,1.62386872,4332.1,4332.0,0.8466]
[1757398232393,1.79046877,4332.1,4332.0,0.8466]
[1757398234386,1.48696877,4332.1,4332.0,0.8466]
[1757398234594,1.31796877,4332.4,4332.3,0.7217]
[1757398234793,1.51516877,4332.4,4332.3,0.7217]
[1757398235096,1.72096877,4332.4,4332.3,0.7217]
[1757398236201,1.48696877,4332.4,4332.3,0.7217]
[1757398236408,1.72096877,4332.4,4332.3,0.7217]
[1757398236698,1.48696877,4332.4,4332.3,0.7217]
[1757398237201,2.02138591,4332.4,4332.3,0.7217]
[1757398238099,1.48696877,4332.4,4332.3,0.7217]
[1757398239501,0.403,4332.4,4332.3,0.7217]
[1757398241895,0.1972,4332.4,4332.3,0.7217]
[1757398242203,0.0629,4333.5,4332.0,0.1249]
[1757398242204,0.4312,4332.7,4332.6,0.7217]
[1757398242396,0.1972,4332.7,4332.6,0.7217]
[1757398243896,0.7065,4332.7,4332.6,0.7217]
[1757398244091,1.24085642,4332.7,4332.0,0.1249]
[1757398244296,1.79046877,4332.3,4332.2,0.42]
[1757398244501,1.79046877,4332.3,4332.2,0.7217]
[1757398244794,1.48696877,4332.3,4332.2,0.7217]
[1757398248102,1.78416877,4332.3,4332.0,0.1249]
[1757398248305,0.716,4332.2,4331.6,0.3105]
[1757398248501,1.79996877,4331.7,4331.6,0.5153]
[1757398249200,0.716,4331.7,4331.6,0.5153]
[1757398249593,0.716,4331.7,4331.6,0.7268]
[1757398249797,0.4188,4331.7,4331.6,0.7268]
[1757398251706,0.716,4331.7,4331.6,0.7268]
[1757398252806,0.4188,4331.7,4331.6,0.7268]
[1757398253409,0.2132,4331.7,4331.6,0.7268]
[1757398258014,0.716,4331.7,4331.6,0.7268]
[1757398258713,0.4188,4331.7,4331.6,0.7268]
[1757398260614,0.2132,4331.7,4331.6,0.7268]
[1757398260814,1.08396877,4332.0,4331.7,0.3105]
[1757398261010,0.53491906,4331.9,4331.8,0.7268]
[1757398261211,1.08396877,4332.7,4331.8,0.4163]
[1757398261511,1.79996877,4332.4,4332.3,0.5153]
[1757398261710,2.33485887,4332.4,4332.3,0.5153]
[1757398262916,2.03765887,4332.4,4332.3,0.7268]
[1757398263117,0.9536901,4332.4,4332.3,0.7268]
[1757398264916,0.5348901,4332.4,4332.3,0.7268]
[1757398265119,0.716,4333.0,4332.9,0.7268]
[1757398265419,1.18760754,4333.0,4332.9,0.7268]
[1757398265922,1.48480754,4333.0,4332.9,0.7268]
[1757398266218,1.25080754,4333.0,4332.9,0.7268]
[1757398266422,1.48480754,4333.0,4332.9,0.7268]
[1757398267219,1.48480754,4333.0,4332.9,0.5153]
[1757398267620,1.25080754,4333.0,4332.9,0.5153]
[1757398267809,1.48480754,4333.0,4332.9,0.5153]
[1757398270424,2.56877631,4333.0,4332.9,0.5153]
[1757398270723,2.33477631,4333.0,4332.9,0.5153]
[1757398271325,2.56877631,4333.0,4332.9,0.5153]
[1757398272218,2.56877631,4333.0,4332.9,0.3105]
[1757398272428,2.56877631,4333.0,4332.6,0.3105]
[1757398272619,1.30861003,4333.5,4332.6,0.3105]
[1757398272620,1.38116877,4332.7,4332.6,0.5153]
[1757398272825,2.56877631,4332.7,4332.6,0.3105]
[1757398273513,2.56877631,4332.7,4332.6,0.5153]
[1757398274824,1.18760754,4332.7,4332.6,0.7268]
[1757398275018,1.48480754,4332.7,4332.6,0.7268]
[1757398275922,1.18760754,4332.7,4332.6,0.7268]
[1757398276326,1.51090754,4332.7,4332.6,0.7268]
[1757398276520,0.7421,4332.7,4332.6,0.7268]
[1757398276720,0.7334,4333.6,4333.5,0.8404]
[1757398276920,1.17860601,4333.6,4333.5,0.8404]
[1757398277319,1.50190601,4333.6,4333.5,0.8404]
[1757398278322,2.58587478,4333.6,4333.5,0.8404]
[1757398279525,2.35187478,4333.6,4333.5,0.8404]
[1757398279722,2.58587478,4333.6,4333.5,0.8404]
[1757398282525,0.6441,4333.6,4333.5,0.8404]
[1757398282721,0.4101,4333.6,4333.5,0.8404]
[1757398282928,0.4399,4333.6,4333.5,0.8404]
[1757398283320,0.1182,4334.5,4333.5,0.8404]
[1757398283519,1.81736877,4334.2,4334.1,0.5127]
[1757398283720,2.3512288,4334.2,4334.1,0.5127]
[1757398283918,2.5852288,4334.2,4334.1,0.5127]
[1757398284524,2.3512288,4334.2,4334.1,0.5127]
[1757398284726,2.5852288,4334.2,4334.1,0.5127]
[1757398286327,2.3512288,4334.2,4334.1,0.5127]
[1757398286523,1.17796003,4334.2,4334.1,0.7171]
[1757398286729,0.4101,4334.2,4334.1,0.7171]
[1757398286925,0.6441,4334.2,4334.1,0.7171]
[1757398287230,0.9674,4334.2,4334.1,0.7171]
[1757398290731,0.234,4334.2,4334.1,0.7171]
[1757398290926,1.08396877,4334.4,4334.2,0.3065]
[1757398291232,1.81736877,4334.4,4334.3,0.5127]
[1757398291430,0.7334,4334.4,4334.3,0.5127]
[1757398291631,0.7334,4334.4,4334.3,0.3065]
[1757398291828,0.9674,4334.4,4334.3,0.3065]
[1757398292029,0.9674,4334.4,4334.3,0.5127]
[1757398293426,0.7334,4334.4,4334.3,0.5127]
[1757398293629,0.9674,4334.4,4334.3,0.5127]
[1757398294428,1.88409275,4334.4,4334.3,0.5127]
[1757398295326,0.9674,4334.4,4334.3,0.5127]
[1757398295530,1.88409275,4334.4,4334.3,0.5127]
[1757398296926,0.9674,4334.4,4334.3,0.5127]
[1757398297130,0.3233,4334.8,4334.3,1.32729275]
[1757398297323,0.0688,4336.0,4335.2,0.7171]
[1757398297324,0.2059,4335.3,4335.2,0.7171]
[1757398297528,0.73920844,4335.3,4335.2,0.7171]
[1757398297830,0.76730844,4335.3,4335.2,0.7171]
[1757398298025,1.50070844,4335.3,4335.2,0.7171]
[1757398298233,2.41740119,4335.3,4334.6,0.3065]
[1757398298528,1.12259275,4335.0,4334.9,0.4106]
[1757398298734,0.2059,4335.0,4334.9,0.7171]
[1757398298935,0.4399,4335.0,4334.9,0.7171]
[1757398299731,0.0688,4336.0,4335.0,0.1233]
[1757398299931,0.53307557,4335.9,4335.1,0.7171]
[1757398300140,0.7334,4335.7,4335.6,0.5127]
[1757398300330,2.41716832,4335.7,4335.6,0.5127]
[1757398301137,2.18316832,4335.7,4335.6,0.7171]
[1757398301438,2.09386832,4335.7,4335.6,0.7171]
[1757398301739,2.41716832,4335.7,4335.6,0.7171]
[1757398303938,2.18316832,4335.7,4335.6,0.7171]
[1757398304238,2.41716832,4335.7,4335.6,0.7171]
[1757398304436,2.41716832,4335.7,4335.6,0.5127]
[1757398306340,2.41716832,4335.7,4335.1,0.2993]
[1757398306535,1.33869275,4335.2,4335.1,0.7172]
[1757398306734,0.53307557,4335.6,4335.1,0.4179]
[1757398306735,0.91669275,4335.3,4335.1,0.4179]
[1757398306936,0.422,4335.6,4335.5,0.8413]
[1757398307130,1.57269275,4335.6,4335.5,0.8413]
[1757398307342,2.10579006,4335.6,4335.5,0.8413]
[1757398308742,1.25729731,4335.6,4335.5,0.6316]
[1757398308935,2.40799006,4335.6,4335.5,0.6316]
[1757398309136,1.49129731,4335.6,4335.5,0.2993]
[1757398309336,0.0805,4335.5,4335.0,0.1233]
[1757398309538,0.7242,4335.1,4335.0,0.3315]
[1757398309935,0.7242,4335.1,4335.0,0.6308]
[1757398310146,0.7242,4335.1,4335.0,0.8405]
[1757398310541,0.422,4335.1,4335.0,0.8405]
[1757398312034,0.234,4335.3,4335.2,0.4179]
[1757398312240,1.68404733,4335.3,4335.2,0.7172]
[1757398312441,2.17424733,4335.3,4335.2,0.7172]
[1757398312843,2.17424733,4335.3,4335.2,0.5075]
[1757398313837,2.17424733,4335.3,4334.6,0.2993]
[1757398314041,0.422,4334.7,4334.6,0.7172]
[1757398314242,0.7242,4334.7,4334.6,0.7172]
[1757398314544,0.422,4334.7,4334.6,0.7172]
[1757398315345,0.7242,4334.7,4334.1,0.2993]
[1757398315536,0.91669275,4334.6,4334.1,0.4179]
[1757398315734,1.33869275,4334.6,4334.5,0.542]
[1757398315936,1.33869275,4334.6,4334.5,0.8413]
[1757398316347,1.64089275,4334.6,4334.5,0.8413]
[1757398318452,1.64089275,4334.6,4334.5,0.2993]
[1757398320249,1.64089275,4334.6,4334.5,0.5075]
[1757398321852,1.33869275,4334.6,4334.5,0.8413]
[1757398322349,0.234,4334.8,4334.6,0.2993]
[1757398322555,0.422,4334.8,4334.7,0.7172]
[1757398322742,0.95638171,4334.8,4334.7,0.7172]
[1757398323150,0.74578171,4334.8,4334.7,0.7172]
[1757398323349,0.53438171,4334.8,4334.7,0.7172]
[1757398323549,0.3022,4335.5,4335.4,0.2082]
[1757398323754,1.25863458,4335.5,4335.0,0.1241]
[1757398323948,1.64089275,4335.1,4334.5,0.1241]
[1757398324253,1.33869275,4334.8,4334.7,0.2082]
[1757398324453,1.33869275,4334.8,4334.7,0.5075]
[1757398324654,0.7242,4334.8,4334.7,0.5075]
[1757398324854,1.64089275,4334.8,4334.7,0.5075]
[1757398325750,1.64089275,4334.8,4334.7,0.2993]
[1757398326347,1.64089275,4334.8,4334.5,0.2993]
[1757398326850,1.64089275,4334.8,4334.1,0.2993]
[1757398327059,1.64089275,4334.4,4334.1,0.2993]
[1757398327256,1.64089275,4334.4,4333.6,0.2993]
[1757398327449,0.91669275,4334.1,4333.6,0.7172]
[1757398327657,0.2114,4334.1,4334.0,0.3323]
[1757398327859,0.2114,4334.1,4334.0,0.542]
[1757398328164,0.2114,4334.1,4334.0,0.8413]
[1757398329163,0.422,4334.1,4334.0,0.8413]
[1757398329456,0.7242,4334.1,4334.0,0.5075]
[1757398329658,1.25883447,4334.1,4334.0,0.2993]
[1757398330163,1.25883447,4334.1,4334.0,0.5075]
[1757398330367,0.7242,4334.1,4334.0,0.6316]
[1757398330562,0.3022,4334.7,4334.6,0.2082]
[1757398330767,0.7242,4334.7,4334.6,0.7172]
[1757398330970,1.25872153,4334.7,4334.6,0.7172]
[1757398331764,0.95652153,4334.7,4334.6,0.7172]
[1757398332966,1.25872153,4334.7,4334.6,0.7172]
[1757398333365,1.25866381,4334.7,4334.6,0.7172]
[1757398333566,1.25866381,4334.7,4334.6,0.5075]